Cogmind - Beta 16.1 @@@ ROGUE MODE // 2026.04.22 @ 00:32:43 // Winter2019/RPGLIKE Player: Toaster Result: Self-destructed Performance ------------- Evolutions (5) 2500 Regions Visited (15) 3000 Robots Destroyed (255) 1275 Value Destroyed (10223) 10223 Prototype IDs (33) 660 Alien Tech Used (1) 200 Bonus (978) 978 TOTAL SCORE: 18836 Bonus ------- High Alert Combat Kills 354 Follower Combat Kills 464 Met Data Miner 300 Friendly Fire -140 Cogmind --------- Core Integrity 1000/1000 Matter 250/300 Energy 1150/1150 System Corruption 0% Temperature Cool (0) Movement Walking (123) Location -5/Factory Parts ------- > --- POWER (4) -------- Enhanced Nuclear Core F-cell Engine Fission Core Particle Reactor > --- PROPULSION (6) --- Improved Titanium Leg Improved Titanium Leg Flexi-carbon Leg Flexi-carbon Leg Flexi-carbon Leg Flexi-carbon Leg > --- UTILITY (7) ------ Coolant Injector Improved Signal Interpreter Weapon Cycler Hardened Heavy Armor Plating Force Field Corruption Screen > --- WEAPON (4) ------- Heavy Ion Cannon Heavy Ion Cannon Cooled Particle Cannon Cooled Particle Cannon > --- INVENTORY (2) ---- Dynamic Insulation System Hacking Drone Bay (1/1) Peak State ------------ > --- POWER ------------ Enhanced Nuclear Core F-cell Engine Fission Core Particle Reactor > --- PROPULSION ------- Improved Titanium Leg Improved Titanium Leg Flexi-carbon Leg Flexi-carbon Leg Flexi-carbon Leg Flexi-carbon Leg > --- UTILITY ---------- Coolant Injector Improved Signal Interpreter Hardened Heavy Armor Plating Force Field Corruption Screen Hacking Drone Bay > --- WEAPON ----------- Heavy Ion Cannon Heavy Ion Cannon Cooled Particle Cannon Cooled Particle Cannon > --- INVENTORY -------- Weapon Cycler Dynamic Insulation System [Rating: 103] Favorites ----------- Power Fission Core Engine F-cell Engine Power Core Fission Core Reactor Particle Reactor Propulsion Flexi-carbon Leg Leg Flexi-carbon Leg Wheel Wheel Hover Unit Aerolev Unit Utility Improved Signal Interpreter Device Coolant Injector Processor Improved Signal Interpreter Hackware System Shield Protection Hardened Heavy Armor Plating Weapon Heavy Ion Cannon Energy Gun Spread Laser Energy Cannon Heavy Ion Cannon Ballistic Gun Assault Rifle Ballistic Cannon Battle Cannon Launcher Guided Missile Launcher Special Weapon Improved Remote Datajack Build | -11 -10 -10 -10 -8 -7 -7 -7 -7 -6 -6 -6 -6 -6 -5 -5 ------- Run | Yrd Mat Min Sub Mat Fac Low Low Zio Pro Fac Low Low Dat Pro Fac Slots Evolved 16 | 3 2 . 1 3 3 . . . . 3 . . . 1 . Power 2 | . . . . 1 . . . . . 1 . . . . . Propulsion 5 | 1 . . 1 . 1 . . . . 1 . . . 1 . Utility 6 | 1 1 . . 2 1 . . . . 1 . . . . . Weapon 3 | 1 1 . . . 1 . . . . . . . . . . Parts Attached 77 | 6 12 4 5 13 20 2 1 4 . 3 . 1 . 5 1 Power 9 | 2 1 1 . 1 2 . . . . 1 . . . 1 . Engine 6 | 2 1 . . 1 1 . . . . 1 . . . . . Core 2 | . . 1 . . 1 . . . . . . . . . . Reactor 1 | . . . . . . . . . . . . . . 1 . Propulsion 17 | 2 . 1 1 3 5 1 . . . 1 . 1 . 1 1 Treads . | . . . . . . . . . . . . . . . . Leg 15 | 2 . 1 . 2 5 1 . . . 1 . 1 . 1 1 Wheel 1 | . . . 1 . . . . . . . . . . . . Hover 1 | . . . . 1 . . . . . . . . . . . Flight . | . . . . . . . . . . . . . . . . Utility 30 | . 7 2 2 6 8 1 . 1 . 1 . . . 2 . Device 12 | . 3 1 . 2 2 . . 1 . 1 . . . 2 . Storage . | . . . . . . . . . . . . . . . . Processor 6 | . 2 . . 2 2 . . . . . . . . . . Hackware 1 | . . . . . 1 . . . . . . . . . . Protection 11 | . 2 1 2 2 3 1 . . . . . . . . . Artifact . | . . . . . . . . . . . . . . . . Weapon 21 | 2 4 . 2 3 5 . 1 3 . . . . . 1 . Energy Gun 5 | . 3 . . 1 . . . 1 . . . . . . . Energy Cannon 10 | . 1 . 1 2 5 . 1 . . . . . . . . Ballistic Gun 2 | 2 . . . . . . . . . . . . . . . Ballistic Cannon 1 | . . . 1 . . . . . . . . . . . . Launcher 2 | . . . . . . . . 2 . . . . . . . Special Weapon 1 | . . . . . . . . . . . . . . 1 . Impact Weapon . | . . . . . . . . . . . . . . . . Slashing Weapon . | . . . . . . . . . . . . . . . . Piercing Weapon . | . . . . . . . . . . . . . . . . Special Melee Weapon . | . . . . . . . . . . . . . . . . Unidentified Prototypes 11 | . . . . 4 2 . . 3 . 1 . . . 1 . Parts Lost 3 | . . 1 . 1 1 . . . . . . . . . . Power . | . . . . . . . . . . . . . . . . Propulsion . | . . . . . . . . . . . . . . . . Utility 2 | . . 1 . . 1 . . . . . . . . . . Weapon 1 | . . . . 1 . . . . . . . . . . . Highest Loss Streak 1 | . . 1 . 1 1 . . . . . . . . . . To Critical Strikes . | . . . . . . . . . . . . . . . . Average Backups 1 | . . 1 . . . 1 1 1 2 1 2 2 2 2 2 Power . | . . . . . . . . . . . . . . . . Propulsion . | . . . . . . . . . . . . . . . . Utility 1 | . . . . . . 1 1 1 2 1 2 2 2 2 2 Weapon . | . . 1 . . . . . . . . . . . . . Tool/Special . | . . . . . . . . . . . . . . . . Unused Backups 3 | . . . 1 1 . . . . . . . . . . 1 Power 1 | . . . . 1 . . . . . . . . . . . Propulsion . | . . . . . . . . . . . . . . . . Utility 1 | . . . . . . . . . . . . . . . 1 Weapon 1 | . . . 1 . . . . . . . . . . . . Tool/Special . | . . . . . . . . . . . . . . . . Average Slot Usage (%) 93 | . 96 99 85 90 98 93 93 92 93 93 94 93 94 92 95 Engine 3 | . 12 . . 3 3 . . . . 4 5 5 5 4 4 Core 9 | . . 10 10 7 8 12 12 12 12 10 10 10 10 9 9 Leg 24 | . 25 22 20 25 22 25 25 25 25 25 26 25 26 26 28 Device 12 | . 6 10 10 12 13 12 12 11 12 13 15 15 15 14 14 Processor 8 | . 10 . . 6 11 12 12 12 12 10 10 10 10 9 9 Protection 8 | . 12 21 11 8 11 6 6 6 6 5 5 5 5 4 4 Energy Gun 7 | . 11 33 30 15 . . . . . . . . . . . Energy Cannon 16 | . 6 . . 9 24 25 25 24 25 22 21 21 21 19 19 Peak Build Rating 103 | 5 13 24 25 44 66 69 69 74 70 88 84 85 85 98 103 Average Rating 57 | 4 8 23 23 36 53 68 68 69 70 80 84 84 85 90 99 On Entrance 55 | . 5 12 24 25 42 66 69 69 70 70 84 84 85 85 98 Avg Prop Armor Cover (%) 5 | . . . 5 6 . . . . . . . . . . . Naked Turns . | . . . . . . . . . . . . . . . . Heaviest Build 107 | 7 21 26 43 52 59 69 70 70 70 89 89 89 89 107 107 Greatest Support 125 | 25 25 35 35 57 83 85 85 85 85 100 100 103 103 123 125 Greatest Overweight (x) 4 | . . 1 2 4 1 1 . . . . . 1 . 1 1 Average Overweight (x) . | . . . . . . . . . . . . . . . . Largest Inventory Capacity 2 | 1 1 1 1 1 1 1 1 2 2 2 2 2 2 2 2 Average Capacity 1 | 1 1 1 1 1 1 1 1 1 2 2 2 2 2 2 2 Most Carried 2 | . 1 1 1 1 1 1 1 2 2 2 2 2 2 2 2 Average Carried 1 | . . 1 . . . 1 1 1 2 1 2 2 2 2 2 Final Capacity 2 | 1 1 1 1 1 1 1 1 2 2 2 2 2 2 2 2 Final Carried 2 | . 1 1 1 1 1 1 1 2 2 2 2 2 2 2 2 Class Distribution -------------------- 33% | Hacker-Gunner 25% | Hacker-Tank 15% | Scavenger-Gunner 6% | Scavenger-Tank 5% | Mutant 5% | Gunner 5% | Generator-Tank Dominant Class ---------------- Mutant | -10/Materials Scavenger-Tank | -10/Mines Scavenger-Gunner | -10/Subcaves Scavenger-Gunner | -8/Materials Hacker-Gunner | -7/Factory Hacker-Gunner | -7/Lower Caves Hacker-Gunner | -7/Lower Caves Hacker-Gunner | -7/Zion Hacker-Gunner | -6/Proximity Caves Hacker-Tank | -6/Factory Hacker-Tank | -6/Lower Caves Hacker-Tank | -6/Lower Caves Hacker-Tank | -6/Data Miner Hacker-Tank | -5/Proximity Caves Generator-Tank | -5/Factory Resources | -11 -10 -10 -10 -8 -7 -7 -7 -7 -6 -6 -6 -6 -6 -5 -5 ----------- Run | Yrd Mat Min Sub Mat Fac Low Low Zio Pro Fac Low Low Dat Pro Fac Matter Collected 1803 | 231 315 38 180 286 177 56 10 60 80 260 . 10 . 100 . Remotely . | . . . . . . . . . . . . . . . . Salvage Created 9879 | . 663 220 260 1861 1285 964 93 . 1175 969 396 780 . 1213 . Parts 475 | . 48 15 23 100 65 30 4 . 43 47 12 32 . 56 . Haulers Intercepted 5 | . 1 . . 2 2 . . . . . . . . . . Recyclers Shooed 2 | . 1 1 . . . . . . . . . . . . . Parts Field Recycled . | . . . . . . . . . . . . . . . . Retrieved Matter . | . . . . . . . . . . . . . . . . Parts Self-Destructed 199 | . . . 10 . . 30 4 . 48 . 12 36 . 59 . Prevented 8 | . . . . . . . . . 8 . . . . . . Parts Restored . | . . . . . . . . . . . . . . . . Kills | -11 -10 -10 -10 -8 -7 -7 -7 -7 -6 -6 -6 -6 -6 -5 -5 ------- Run | Yrd Mat Min Sub Mat Fac Low Low Zio Pro Fac Low Low Dat Pro Fac Combat Hostiles Destroyed 247 | . 23 26 11 51 22 20 4 . 21 20 7 14 . 28 . Guns 83 | . 15 26 11 31 . . . . . . . . . . . Cannons 155 | . 8 . . 20 21 18 4 . 20 19 6 14 . 25 . Classes Destroyed 22 | . 4 4 4 6 2 . . . 1 . . . . 1 . Worker 3 | . . . . 1 1 . . . . 1 . . . . . Tunneler 1 | . . 1 . . . . . . . . . . . . . Hauler 5 | . 1 . . 2 2 . . . . . . . . . . Recycler 2 | . . 1 . . 1 . . . . . . . . . . Mechanic 2 | . . . . 1 1 . . . . . . . . . . Operator 2 | . . . . 1 . . . . . 1 . . . . . Turret 2 | . . . 2 . . . . . . . . . . . . Watcher 12 | . 3 . . 3 3 . . . . 3 . . . . . Swarmer 50 | . 9 2 4 8 . 11 . . 2 3 . 4 . 7 . Grunt 106 | . 14 4 . 29 8 8 3 . 12 9 4 5 . 10 . Brawler 9 | . . . . 2 . . . . 2 1 . 1 . 3 . Duelist 11 | . . . . 1 1 . 1 . 1 . 2 2 . 3 . Protector 1 | . . . . . . . . . . . . . . 1 . Sentry 28 | . . . 1 10 7 1 . . 2 2 1 2 . 2 . Demolisher 2 | . . 2 . . . . . . . . . . . . . Hunter 3 | . . . . 1 . . . . . . . . . 2 . Programmer 8 | . . . . . 5 . . . 1 2 . . . . . Heavy 1 | . . . . . 1 . . . . . . . . . . Behemoth 1 | . . . . . . . . . 1 . . . . . . Artisan 1 | . . . 1 . . . . . . . . . . . . Subdweller 6 | . . . 6 . . . . . . . . . . . . Assembled 21 | . . 18 . . . . . . . 3 . . . . . Best Kill Streak 6 | . 5 6 6 6 5 4 4 . 6 6 4 4 . 6 . Combat Bots Only 6 | . 5 6 6 6 4 4 4 . 6 5 4 4 . 6 . Max Kills in Single Turn 2 | . 1 2 2 2 2 1 1 . 1 2 1 1 . 1 . Gunslinging 1 | . . 1 1 1 . . . . . . . . . . . Exploded . | . . . . . . . . . . . . . . . . Melee . | . . . . . . . . . . . . . . . . Uniques/NPCs Destroyed . | . . . . . . . . . . . . . . . . Combat | -11 -10 -10 -10 -8 -7 -7 -7 -7 -6 -6 -6 -6 -6 -5 -5 -------- Run | Yrd Mat Min Sub Mat Fac Low Low Zio Pro Fac Low Low Dat Pro Fac Hostile Shots Fired 855 | . 95 52 45 147 125 64 5 . 51 138 29 25 . 79 . Missed 298 | . 24 14 23 40 53 21 . . 22 61 9 12 . 19 . Hits 557 | . 71 38 22 107 72 43 5 . 29 77 20 13 . 60 . Melee 4 | . . 2 . . . . . . . 2 . . . . . Projectile 553 | . 71 36 22 107 72 43 5 . 29 75 20 13 . 60 . AOE 9 | . . 9 . . . . . . . . . . . . . Critical Strikes 24 | . . 1 2 10 3 1 . . . 3 2 . . 2 . Part Disruptions 1 | . . 1 . . . . . . . . . . . . . Damage Taken 6790 | . 667 724 259 1578 1350 532 61 . 560 407 138 84 . 430 . Core 4339 | . 480 504 161 953 925 332 32 . 325 244 77 52 . 254 . Absorbed by Shields 955 | . . . . . . . . . . 257 149 89 . 460 . Redirected to Core 3813 | . 405 371 114 826 873 332 32 . 305 193 70 52 . 240 . Ignored by Resistances 680 | . . . . . . 96 12 . 115 148 58 44 . 207 . Regen/Repaired (Parts) 142 | . . . . 81 . . . 61 . . . . . . . Core Remaining (%) 95 | 100 . . 83 96 . . . . 100 . . . . 100 . Volleys Fired 466 | . 58 40 31 88 48 29 10 . 35 46 13 22 . 46 . Largest 4 | . 3 3 3 3 4 4 4 . 4 4 4 4 . 4 . Hottest 310 | . 195 195 195 205 280 205 205 . 310 190 310 310 . 310 . Shots Fired 1499 | . 128 119 67 258 175 116 37 . 134 164 50 84 . 167 . Gun 440 | . 93 119 52 176 . . . . . . . . . . . Cannon 1059 | . 35 . 15 82 175 116 37 . 134 164 50 84 . 167 . Launcher . | . . . . . . . . . . . . . . . . Special . | . . . . . . . . . . . . . . . . Kinetic 67 | . 57 . 10 . . . . . . . . . . . . Thermal 1422 | . 71 119 57 258 165 116 37 . 134 164 50 84 . 167 . Explosive . | . . . . . . . . . . . . . . . . Electromagnetic 10 | . . . . . 10 . . . . . . . . . . Robot Hit Streak 63 | . 15 14 22 47 60 63 11 . 35 25 25 25 . 24 . Robot Miss Streak 9 | . 5 9 5 5 3 1 1 . 2 2 1 2 . 1 . Penetration Max . | . . . . . . . . . . . . . . . . Secondary Targets 15 | . 1 7 2 5 . . . . . . . . . . . Max Gunslinging Chain 1 | . 1 1 1 1 . . . . . . . . . . . Shots Hit Robots 1038 | . 88 98 44 191 117 72 25 . 98 101 41 48 . 115 . Core Hits 781 | . 66 153 73 242 44 28 9 . 36 41 13 23 . 53 . Critical Kills . | . . . . . . . . . . . . . . . . Critical Parts Destroyed . | . . . . . . . . . . . . . . . . Critical Strikes . | . . . . . . . . . . . . . . . . Melee Attacks . | . . . . . . . . . . . . . . . . Impact . | . . . . . . . . . . . . . . . . Slashing . | . . . . . . . . . . . . . . . . Piercing . | . . . . . . . . . . . . . . . . Sneak Attacks . | . . . . . . . . . . . . . . . . Combat Hostiles . | . . . . . . . . . . . . . . . . Follow-up Attacks . | . . . . . . . . . . . . . . . . Damage Inflicted 25729 | . 1224 1319 801 4066 3623 2006 696 . 2989 2996 1174 1429 . 3406 . Guns 5232 | . 763 1313 783 2373 . . . . . . . . . . . Cannons 20318 | . 458 . 18 1690 3495 2006 696 . 2989 2957 1174 1429 . 3406 . Explosions 102 | . . . . . 102 . . . . . . . . . . Melee . | . . . . . . . . . . . . . . . . Ramming 77 | . 3 6 . 3 26 . . . . 39 . . . . . Kinetic 413 | . 395 . 18 . . . . . . . . . . . . Thermal 24928 | . 826 1313 783 4063 3286 2006 696 . 2989 2957 1174 1429 . 3406 . Explosive 102 | . . . . . 102 . . . . . . . . . . Electromagnetic 209 | . . . . . 209 . . . . . . . . . . Impact . | . . . . . . . . . . . . . . . . Slashing . | . . . . . . . . . . . . . . . . Piercing . | . . . . . . . . . . . . . . . . Highest Corruption 1 | . . . . 1 . . . . . . . . . . . Average Corruption 1 | . . . . 1 . . . . . . . . . . . Corruption Purged . | . . . . . . . . . . . . . . . . Corruption Blocked 2 | . . . . . 2 . . . . . . . . . . Effects 12 | . . . . 12 . . . . . . . . . . . Message Errors 3 | . . . . 3 . . . . . . . . . . . Matter Fused 2 | . . . . 2 . . . . . . . . . . . Heat Flow Errors 2 | . . . . 2 . . . . . . . . . . . Energy Discharges 1 | . . . . 1 . . . . . . . . . . . Data Loss (minor) 3 | . . . . 3 . . . . . . . . . . . Weapon Failures 1 | . . . . 1 . . . . . . . . . . . Overload Shots 19 | . . . . . 1 . . . 6 2 2 4 . 4 . Effects 2 | . . . . . . . . . . . 1 1 . . . Energy Bleed 1 | . . . . . . . . . . . . 1 . . . Heat Surge 1 | . . . . . . . . . . . 1 . . . . Overflow Damage 316 | . . . . 16 103 42 4 . 36 43 37 23 . 12 . Projectiles 316 | . . . . 16 103 42 4 . 36 43 37 23 . 12 . Explosions . | . . . . . . . . . . . . . . . . Melee . | . . . . . . . . . . . . . . . . Knockbacks . | . . . . . . . . . . . . . . . . Impact . | . . . . . . . . . . . . . . . . Kinetic . | . . . . . . . . . . . . . . . . Secondary . | . . . . . . . . . . . . . . . . Self-Inflicted Damage . | . . . . . . . . . . . . . . . . Shots . | . . . . . . . . . . . . . . . . Rammed . | . . . . . . . . . . . . . . . . Targets Rammed 16 | . 1 3 . 3 5 . . . . 4 . . . . . Kicked 16 | . 1 3 . 3 5 . . . . 4 . . . . . Crushed . | . . . . . . . . . . . . . . . . Highest Temperature 435 | . 347 168 8 346 216 198 195 . 187 198 435 233 . 199 . Average Temperature 90 | . 90 42 8 82 105 107 94 . 86 78 131 109 . 109 . Received Heat Transfer 2529 | . 216 222 66 999 201 159 45 . 246 160 72 16 . 127 . Effects 3 | . . . . 3 . . . . . . . . . . . Interference 2 | . . . . 2 . . . . . . . . . . . Matter Decay 1 | . . . . 1 . . . . . . . . . . . Siege Activations . | . . . . . . . . . . . . . . . . Martial Activations . | . . . . . . . . . . . . . . . . Shielding Activations . | . . . . . . . . . . . . . . . . Robots Disrupted . | . . . . . . . . . . . . . . . . Combat Hostiles . | . . . . . . . . . . . . . . . . Robots Corrupted . | . . . . . . . . . . . . . . . . Combat Hostiles . | . . . . . . . . . . . . . . . . Parts Fried 2 | . . . . . 1 . . . 1 . . . . . . Impact Corruptions . | . . . . . . . . . . . . . . . . Robots Melted 9 | . . . . . 1 2 . . 1 1 1 . . 3 . Combat Hostiles 9 | . . . . . 1 2 . . 1 1 1 . . 3 . Parts Melted 76 | . . 1 1 11 12 10 1 . 14 8 3 4 . 11 . Heat Transferred 32961 | . 1412 1650 980 5343 4541 2909 977 . 3778 3848 1530 1815 . 4178 . Parts Sabotaged . | . . . . . . . . . . . . . . . . Parts Stolen . | . . . . . . . . . . . . . . . . Parts Stripped . | . . . . . . . . . . . . . . . . Power Chain Reactions . | . . . . . . . . . . . . . . . . Alert | -11 -10 -10 -10 -8 -7 -7 -7 -7 -6 -6 -6 -6 -6 -5 -5 ------- Run | Yrd Mat Min Sub Mat Fac Low Low Zio Pro Fac Low Low Dat Pro Fac Maximum Alert Level 3 | . 1 1 . 3 2 . . . . 1 . . . . . Low Security (%) 66 | 100 89 97 . 20 76 . . . . 61 . . . . 100 Level 1 16 | . 10 2 . 13 15 . . . . 38 . . . . . Level 2 16 | . . . . 64 7 . . . . . . . . . . Level 3 . | . . . . . . . . . . . . . . . . Level 4 . | . . . . . . . . . . . . . . . . Level 5 . | . . . . . . . . . . . . . . . . High Security . | . . . . . . . . . . . . . . . . Max Security . | . . . . . . . . . . . . . . . . Sterilizations 1 | . . . . 1 . . . . . . . . . . . Peak Influence 708 | . 285 215 . 708 498 . . . . 300 . . . . 37 Initial 253 | . . 105 . 7 253 . . . . 91 . . . . 37 Average 178 | . 83 73 . 423 106 . . . . 177 . . . . 7 Influence Increases 6421 | . 730 210 170 1439 808 455 90 . 643 744 150 305 . 677 . Destroy 0b10 Robot/C 4740 | . 460 160 140 1020 440 400 80 . 540 480 140 280 . 600 . Destroy 0b10 Robot/NC 160 | . 20 10 . 40 40 5 . . . 35 . 5 . 5 . Destroy Leader 916 | . 108 40 . 280 170 50 10 . 60 118 10 20 . 50 . Allied During Kill 113 | . . . . . . . . . 43 48 . . . 22 . Successful Hack 84 | . 31 . . 23 30 . . . . . . . . . . Select Force Hacks 110 | . 110 . . . . . . . . . . . . . . Disable Machine 120 | . . . . 15 90 . . . . 15 . . . . . Destroy Structure 88 | . 1 . . 16 38 . . . . 33 . . . . . Partial Spotted 15 | . . . . 15 . . . . . . . . . . . Lose Combat Pursuer 75 | . . . 30 30 . . . . . 15 . . . . . Influence Decreases 6421 | . 460 480 156 896 882 613 415 . 498 659 380 271 34 618 59 Entered New Map 914 | . . 165 . 7 304 179 63 . . 54 86 . 34 . 22 Time Decay 5039 | . 460 305 156 579 550 434 352 . 458 565 294 271 . 578 37 Lost Part 30 | . . 10 . 10 10 . . . . . . . . . . Lost Ally 120 | . . . . . . . . . 40 40 . . . 40 . Purge Threat 318 | . . . . 300 18 . . . . . . . . . . Squads Dispatched 42 | . 7 . . 15 9 . . . 1 8 . 1 . 1 . Investigation 11 | . 6 . . 5 . . . . . . . . . . . Extermination 7 | . . . . . 4 . . . . 3 . . . . . Reinforcement 6 | . 1 . . 1 2 . . . . 2 . . . . . Assault 3 | . . . . . . . . . 1 . . 1 . 1 . Garrison 15 | . . . . 9 3 . . . . 3 . . . . . Intercept . | . . . . . . . . . . . . . . . . Searches Triggered . | . . . . . . . . . . . . . . . . Construction Impeded 2 | . . . . . . . . . . 2 . . . . . Haulers Reinforced . | . . . . . . . . . . . . . . . . Active Scanning Responses . | . . . . . . . . . . . . . . . . Cargo Convoy Interrupts . | . . . . . . . . . . . . . . . . Stealth | -11 -10 -10 -10 -8 -7 -7 -7 -7 -6 -6 -6 -6 -6 -5 -5 --------- Run | Yrd Mat Min Sub Mat Fac Low Low Zio Pro Fac Low Low Dat Pro Fac Distress Signals 6 | . . . . 3 1 . . . . 2 . . . . . Communications Jammed . | . . . . . . . . . . . . . . . . Distress Signals . | . . . . . . . . . . . . . . . . Times Spotted 311 | . 29 29 15 64 26 20 4 . 27 47 7 13 . 30 . Peak Tracking Total 8 | . 3 8 6 5 5 4 4 . 7 6 4 4 . 6 . Tactical Retreats 7 | . . 3 1 2 . . . . . 1 . . . . . Traps | -11 -10 -10 -10 -8 -7 -7 -7 -7 -6 -6 -6 -6 -6 -5 -5 ------- Run | Yrd Mat Min Sub Mat Fac Low Low Zio Pro Fac Low Low Dat Pro Fac Traps Triggered 13 | . 3 . . 1 5 . . . . 4 . . . . . Indirectly . | . . . . . . . . . . . . . . . . Trap Hack Attempts . | . . . . . . . . . . . . . . . . Triggered . | . . . . . . . . . . . . . . . . Disarmed . | . . . . . . . . . . . . . . . . Reprogrammed . | . . . . . . . . . . . . . . . . Reused . | . . . . . . . . . . . . . . . . Traps Extracted . | . . . . . . . . . . . . . . . . Installed . | . . . . . . . . . . . . . . . . Triggered . | . . . . . . . . . . . . . . . . Machines | -11 -10 -10 -10 -8 -7 -7 -7 -7 -6 -6 -6 -6 -6 -5 -5 ---------- Run | Yrd Mat Min Sub Mat Fac Low Low Zio Pro Fac Low Low Dat Pro Fac Machines Disabled 10 | . . . 1 1 6 . . . . 1 . . . 1 . Max in Single Turn 4 | . . . 1 1 4 . . . . 1 . . . 1 . Garrison Access 1 | . . . . . 1 . . . . . . . . . . Machines Repaired . | . . . . . . . . . . . . . . . . Machines Dismantled . | . . . . . . . . . . . . . . . . Machines Sabotaged 1 | . 1 . . . . . . . . . . . . . . Overloaded Fab Kills . | . . . . . . . . . . . . . . . . Hacking | -11 -10 -10 -10 -8 -7 -7 -7 -7 -6 -6 -6 -6 -6 -5 -5 --------- Run | Yrd Mat Min Sub Mat Fac Low Low Zio Pro Fac Low Low Dat Pro Fac Machines Accessed 37 | . 9 . 2 10 9 1 . . . 1 . . 4 1 . Terminals 25 | . 7 . . 9 8 . . . . 1 . . . . . Fabricators . | . . . . . . . . . . . . . . . . Repair Stations 1 | . . . . 1 . . . . . . . . . . . Recycling Units 2 | . 2 . . . . . . . . . . . . . . Scanalyzers . | . . . . . . . . . . . . . . . . Garrison Access 1 | . . . . . 1 . . . . . . . . . . Total Hacks 114 | . 26 . 5 27 25 1 . . . 2 . . 27 1 . Successful 69 | . 14 . 5 10 9 1 . . . 2 . . 27 1 . Failed 45 | . 12 . . 17 16 . . . . . . . . . . Catastrophic 11 | . . . . 7 4 . . . . . . . . . . Database Lockouts . | . . . . . . . . . . . . . . . . Manual 57 | . 20 . . 17 18 . . . . 2 . . . . . Terminals 71 | . 21 . . 24 24 . . . . 2 . . . . . Fabricators . | . . . . . . . . . . . . . . . . Repair Stations 3 | . . . . 3 . . . . . . . . . . . Recycling Units 5 | . 5 . . . . . . . . . . . . . . Scanalyzers . | . . . . . . . . . . . . . . . . Garrison Access 1 | . . . . . 1 . . . . . . . . . . Terminal Hacks 49 | . 3 . 5 5 5 1 . . . 2 . . 27 1 . Record 16 | . . . 4 . . . . . . . . . 11 1 . Part Schematic 9 | . . . . . . . . . . . . . 9 . . Robot Schematic 4 | . . . . . . . . . . . . . 4 . . Prototype ID Bank 3 | . . . . . . . . . . . . . 3 . . Open Door 1 | . . . . . . 1 . . . . . . . . . Branch Access Points 4 | . 1 . . 1 1 . . . . 1 . . . . . Terminal Index 3 | . . . . 1 1 . . . . 1 . . . . . Alert Level 1 | . . . . . 1 . . . . . . . . . . Unreport Threat 3 | . . . . 2 1 . . . . . . . . . . Locate Traps 1 | . . . . . 1 . . . . . . . . . . Hauler Manifests 2 | . 1 . . 1 . . . . . . . . . . . Zone Layout 1 | . 1 . . . . . . . . . . . . . . Proto ID Catalog 1 | . . . 1 . . . . . . . . . . . . Fabricator Hacks . | . . . . . . . . . . . . . . . . Repair Station Hacks 2 | . . . . 2 . . . . . . . . . . . Scan Component 1 | . . . . 1 . . . . . . . . . . . Repair 1 | . . . . 1 . . . . . . . . . . . Recycling Unit Hacks 2 | . 2 . . . . . . . . . . . . . . Report Inventory 2 | . 2 . . . . . . . . . . . . . . Scanalyzer . | . . . . . . . . . . . . . . . . Garrison Access Hacks 1 | . . . . . 1 . . . . . . . . . . Seal Access 1 | . . . . . 1 . . . . . . . . . . Unauthorized Hacks 15 | . 9 . . 3 3 . . . . . . . . . . Terminals 13 | . 7 . . 3 3 . . . . . . . . . . Botnet 12 | . 6 . . 3 3 . . . . . . . . . . Sabotage 1 | . 1 . . . . . . . . . . . . . . Fabricators . | . . . . . . . . . . . . . . . . Repair Stations . | . . . . . . . . . . . . . . . . Recycling Units 2 | . 2 . . . . . . . . . . . . . . Tunnel 2 | . 2 . . . . . . . . . . . . . . Scanalyzers . | . . . . . . . . . . . . . . . . Garrison Access . | . . . . . . . . . . . . . . . . Data Cores Recovered 3 | . . . . 1 . . . . . 2 . . . . . Used . | . . . . . . . . . . . . . . . . Hacking Detections 23 | . 6 . . 10 7 . . . . . . . . . . Full Trace Events 4 | . . . . 4 . . . . . . . . . . . Feedback Events 1 | . . . . 1 . . . . . . . . . . . Corruption 1 | . . . . 1 . . . . . . . . . . . Feedback Blocked . | . . . . . . . . . . . . . . . . Robot Schematics Acquired 4 | . . . . . . . . . . . . . 4 . . Robots Built . | . . . . . . . . . . . . . . . . Authchips . | . . . . . . . . . . . . . . . . Time . | . . . . . . . . . . . . . . . . Total Robot Build Rating . | . . . . . . . . . . . . . . . . Part Schematics Acquired 9 | . . . . . . . . . . . . . 9 . . Parts Built . | . . . . . . . . . . . . . . . . Authchips . | . . . . . . . . . . . . . . . . Time . | . . . . . . . . . . . . . . . . Total Part Build Rating . | . . . . . . . . . . . . . . . . Part Studies Acquired . | . . . . . . . . . . . . . . . . Parts Repaired 1 | . . . . 1 . . . . . . . . . . . Time 50 | . . . . 50 . . . . . . . . . . . Parts Recycled . | . . . . . . . . . . . . . . . . Recycled Matter . | . . . . . . . . . . . . . . . . Retrieved Matter . | . . . . . . . . . . . . . . . . Retrieved Components . | . . . . . . . . . . . . . . . . Parts Scanalyzed . | . . . . . . . . . . . . . . . . Part Schematics Acquired . | . . . . . . . . . . . . . . . . Parts Damaged . | . . . . . . . . . . . . . . . . Bothacking | -11 -10 -10 -10 -8 -7 -7 -7 -7 -6 -6 -6 -6 -6 -5 -5 ------------ Run | Yrd Mat Min Sub Mat Fac Low Low Zio Pro Fac Low Low Dat Pro Fac Used RIF Installer . | . . . . . . . . . . . . . . . . Robots Hacked . | . . . . . . . . . . . . . . . . Non-combat . | . . . . . . . . . . . . . . . . Combat . | . . . . . . . . . . . . . . . . Robot Hacks Applied . | . . . . . . . . . . . . . . . . Relay Couplers Released . | . . . . . . . . . . . . . . . . Fabnet Peak Effective % . | . . . . . . . . . . . . . . . . Robots Rewired 5 | . . . . . . . . . 2 . . 1 . 2 . Allies Hacked . | . . . . . . . . . . . . . . . . Hacks Repelled . | . . . . . . . . . . . . . . . . Allies | -11 -10 -10 -10 -8 -7 -7 -7 -7 -6 -6 -6 -6 -6 -5 -5 -------- Run | Yrd Mat Min Sub Mat Fac Low Low Zio Pro Fac Low Low Dat Pro Fac Total Allies 7 | . . . . . . . . 2 2 . . 1 . 2 . Largest Group 2 | . . . . . . . . 2 2 2 . 1 1 2 1 Highest-Rated Group 65 | . . . . . . . . 65 65 64 . 29 29 59 29 Highest-Rated Ally 51 | . . . . . . . . 51 51 32 . 29 29 30 29 Total Orders 13 | . . . . . . . . . . 11 . . . . 2 RETURN 13 | . . . . . . . . . . 11 . . . . 2 Ally Attacks 70 | . . . . . . . . . 20 29 . . . 21 . Total Damage 1978 | . . . . . . . . . 772 903 . . . 303 . Kills 20 | . . . . . . . . . 6 11 . . . 3 . Allies Corrupted . | . . . . . . . . . . . . . . . . Allies Melted . | . . . . . . . . . . . . . . . . Intel | -11 -10 -10 -10 -8 -7 -7 -7 -7 -6 -6 -6 -6 -6 -5 -5 ------- Run | Yrd Mat Min Sub Mat Fac Low Low Zio Pro Fac Low Low Dat Pro Fac Active Infowar (turns) 1466 | . 252 . . 1214 . . . . . . . . . . . Seismic 252 | . 252 . . . . . . . . . . . . . . Machine Analysis 1214 | . . . . 1214 . . . . . . . . . . . Robot Analysis Total . | . . . . . . . . . . . . . . . . Derelict Logs Recovered 14 | . . 1 1 . . 2 2 1 2 . . 2 . 3 . Drone Launches 13 | . . . . . . . . . . 11 . . . . 2 Drone Recoveries 13 | . . . . . . . . . . 11 . . . . 2 Exploration | -11 -10 -10 -10 -8 -7 -7 -7 -7 -6 -6 -6 -6 -6 -5 -5 ------------- Run | Yrd Mat Min Sub Mat Fac Low Low Zio Pro Fac Low Low Dat Pro Fac Turns Passed 21003 | 72 1600 1061 2060 2105 2744 1074 1344 1192 1148 1694 1437 1263 132 1840 237 Spaces Moved 14115 | 57 1052 729 1092 1288 1755 767 1028 934 772 1071 1085 945 107 1261 172 Core 15 | 8 . . 6 1 . . . . . . . . . . . Treads . | . . . . . . . . . . . . . . . . Legs 13957 | 49 1052 729 1000 1230 1755 767 1028 934 772 1071 1085 945 107 1261 172 Wheels 143 | . . . 86 57 . . . . . . . . . . . Hover . | . . . . . . . . . . . . . . . . Flight . | . . . . . . . . . . . . . . . . Fastest Speed 50 | 50 120 120 110 110 122 125 125 125 125 124 124 124 124 123 123 Average Speed 127 | 110 120 120 168 122 123 125 125 125 125 124 124 124 124 129 123 Slowest Speed 250 | 120 120 190 190 250 195 196 125 125 125 125 124 195 124 195 194 Overloaded Moves . | . . . . . . . . . . . . . . . . Propulsion Burnouts . | . . . . . . . . . . . . . . . . Robots Hopped . | . . . . . . . . . . . . . . . . Potential Cave-ins . | . . . . . . . . . . . . . . . . Cave-ins Triggered . | . . . . . . . . . . . . . . . . Exploration Rate (%) 67 | 3 98 97 50 81 43 79 91 83 87 23 82 88 73 98 5 Regions Visited 15 Branch Regions 10 Pre-discovered Areas 7 | . 2 . . . . . . 2 1 . . . 1 1 . Known Exits Taken 12 | . 1 . . 1 1 1 1 1 1 1 1 1 1 1 . Unknown Exits Taken 3 | 1 . 1 1 . . . . . . . . . . . . Scrap Searched 29 | . . 1 7 . . 3 1 2 5 . 4 1 . 5 . Spaces Dug 6 | . . . . . 1 . 1 . . 2 . . . 2 . Terrain Destroyed 173 | . . . 1 15 37 20 8 . 11 30 4 19 . 28 . Melee . | . . . . . . . . . . . . . . . . Projectile 152 | . . . 1 15 16 20 8 . 11 30 4 19 . 28 . AOE 21 | . . . . . 21 . . . . . . . . . . Terrain Rammed . | . . . . . . . . . . . . . . . . Walls Destroyed . | . . . . . . . . . . . . . . . . Machines Disabled . | . . . . . . . . . . . . . . . . Actions | -11 -10 -10 -10 -8 -7 -7 -7 -7 -6 -6 -6 -6 -6 -5 -5 --------- Run | Yrd Mat Min Sub Mat Fac Low Low Zio Pro Fac Low Low Dat Pro Fac Total 16135 | 63 1269 823 1250 1616 2215 824 1068 955 887 1337 1151 990 106 1387 194 Wait 997 | . 114 26 94 140 308 3 9 . 40 179 38 5 . 25 16 Move 14101 | 56 1051 728 1091 1287 1754 766 1027 933 771 1071 1084 944 106 1260 172 Hop . | . . . . . . . . . . . . . . . . Pick Up 9 | . 1 . 1 5 1 . . 1 . . . . . . . Fast Attach 97 | 6 12 4 7 13 21 2 1 12 . 7 . 1 . 10 1 Attach 5 | . . . . 2 2 . . . . 1 . . . . . Detach 10 | . 3 . . 1 5 . . . . 1 . . . . . Swap 35 | . . . 6 5 . . . 2 . 18 . . . . 4 Drop 67 | 1 6 3 8 13 14 3 1 7 . 2 . 1 . 7 1 Fire 466 | . 58 40 31 88 48 29 10 . 35 46 13 22 . 46 . Melee . | . . . . . . . . . . . . . . . . Ram . | . . . . . . . . . . . . . . . . Kick 15 | . 1 3 . 3 5 . . . . 3 . . . . . Crush . | . . . . . . . . . . . . . . . . Escape Stasis 3 | . . . . . 3 . . . . . . . . . . Rewire 25 | . . . . . . . . . 11 . . 3 . 11 . Trap . | . . . . . . . . . . . . . . . . Miscellaneous 305 | . 23 19 12 59 54 21 20 . 30 9 16 14 . 28 . Route ------- -11/Scrapyard -10/Materials (discovered 5 exits: [*Mat x3] / *Min x2) -10/Mines (discovered 3 exits: [*Mat x2] / *Sub) -10/Subcaves (discovered 3 exits: *Mat x2 / *Rec) -8/Materials (discovered 3 exits: *Fac x3) -7/Factory (discovered 5 exits: *Fac / Sto x2 / *Low x2) -7/Lower Caves -7/Lower Caves (discovered 2 exits: Fac / *Zio) -7/Zion -6/Proximity Caves -6/Factory (discovered 6 exits: *Fac x4 / *Low x2) -6/Lower Caves -6/Lower Caves -6/Data Miner -5/Proximity Caves -5/Factory (discovered 4 exits: Upp x2 / Ext x2) History --------- Turn | Location | Event 1 | -11/Scrapyard | Upgraded with Propulsion slot (x1) 1 | -11/Scrapyard | Upgraded with Utility slot (x1) 1 | -11/Scrapyard | Upgraded with Weapon slot (x1) 8 | -11/Scrapyard | Discovered new exit (range 16) 73 | -11/Scrapyard | Entered Materials 307 | -10/Materials | Build established: Mutant 508 | -10/Materials | Discovered new exit (range 7) 599 | -10/Materials | Discovered new exit (range 3) 777 | -10/Materials | Reached level 2 831 | -10/Materials | Upgraded with Utility slot (x1) 1027 | -10/Materials | Discovered new exit (range 9) 1035 | -10/Materials | Identified exit to Mines 1099 | -10/Materials | Discovered new exit (range 16) 1156 | -10/Materials | Upgraded with Weapon slot (x1) 1461 | -10/Materials | Build established: Tank 1461 | -10/Materials | Discovered new exit (range 11) 1501 | -10/Materials | Reached level 3 1673 | -10/Materials | Entered Mines 1674 | -10/Mines | Assembled infested the area 1679 | -10/Mines | Assisted by a Guerilla fighting off Assembled 1765 | -10/Mines | Reached level 4 1808 | -10/Mines | Discovered new exit (range 15) 2024 | -10/Mines | Found DCF Scrap (13 items) 2029 | -10/Mines | Build established: Scavenger-Tank 2193 | -10/Mines | Discovered new exit (range 10) 2500 | -10/Mines | Discovered new exit (range 6) 2734 | -10/Mines | Entered Subcaves 2799 | -10/Subcaves | Identified exit to Recycling 2856 | -10/Subcaves | Reached level 5 3040 | -10/Subcaves | Visited Clippyterm 3046 | -10/Subcaves | Learned Factory emergency access door positions 3163 | -10/Subcaves | Shifting Twisted Machinery released Sub. Beam Cannon 3190 | -10/Subcaves | Shifting Twisted Machinery released Battle Cannon 3217 | -10/Subcaves | A swath of the cavern ceiling suddenly collapsed 3329 | -10/Subcaves | Build established: Scavenger-Gunner 3682 | -10/Subcaves | Visited 4L-MR0's lab 3714 | -10/Subcaves | Upgraded with Propulsion slot (x1) 3966 | -10/Subcaves | Shifting Twisted Machinery released Sub. Monowheel 3985 | -10/Subcaves | Shifting Twisted Machinery released Sub. Machine Gun 4261 | -10/Subcaves | Discovered new exit (range 14) 4642 | -10/Subcaves | Ambushed by angry Subdweller bent on revenge 4721 | -10/Subcaves | Discovered new exit (range 9) 4749 | -10/Subcaves | Disturbed a concealed Subdweller 4794 | -10/Subcaves | Entered Materials 4796 | -8/Materials | Reached level 6 5066 | -8/Materials | Garrison activated, responded to threat 5129 | -8/Materials | Reached level 7 5159 | -8/Materials | Upgraded with Utility slot (x1) 5184 | -8/Materials | Discovered new exit (range 5) 5360 | -8/Materials | Reached level 8 5367 | -8/Materials | Garrison activated, responded to threat 5711 | -8/Materials | Reached level 9 5711 | -8/Materials | Garrison activated, responded to threat 5803 | -8/Materials | Discovered new exit (range 10) 5853 | -8/Materials | Upgraded with Utility slot (x1) 5863 | -8/Materials | Upgraded with Power slot (x1) 6094 | -8/Materials | Repaired Fission Core 6439 | -8/Materials | Discovered new exit (range 15) 6463 | -8/Materials | Identified exit to Factory 6548 | -8/Materials | Reached level 10 6687 | -8/Materials | Build established: Gunner 6840 | -8/Materials | Sterilization system engaged 6840 | -8/Materials | Non-combat units ordered to evacuate 6899 | -8/Materials | Entered Factory 6900 | -7/Factory | Identified exit to Storage 6901 | -7/Factory | Reached level 11 7433 | -7/Factory | Upgraded with Utility slot (x1) 7433 | -7/Factory | Upgraded with Weapon slot (x1) 7463 | -7/Factory | Reached level 12 7772 | -7/Factory | Build established: Hacker-Gunner 8419 | -7/Factory | Upgraded with Propulsion slot (x1) 9120 | -7/Factory | Reached level 13 9201 | -7/Factory | Identified exit to Lower Caves 9461 | -7/Factory | Reached level 14 9474 | -7/Factory | Discovered new exit (range 16) 9638 | -7/Factory | Build established: Hacker-Tank 9643 | -7/Factory | Entered Lower Caves 9706 | -7/Lower Caves | Learned Factory emergency access door positions 9776 | -7/Lower Caves | Attracted the attention of an 0b10 checkpoint 9928 | -7/Lower Caves | Learned Factory security intel 10108 | -7/Lower Caves | Build established: Hacker-Gunner 10172 | -7/Lower Caves | Reached level 15 10189 | -7/Lower Caves | Entered a destroyed Warlord outpost 10385 | -7/Lower Caves | Discovered new exit (range 14) 10413 | -7/Lower Caves | Identified exit to Lower Caves 10717 | -7/Lower Caves | Entered another Lower Caves area 10902 | -7/Lower Caves | Identified exit to Factory 11054 | -7/Lower Caves | Encountered a Warlord checkpoint 11114 | -7/Lower Caves | Activated DRS Beacon 11173 | -7/Lower Caves | Entered a destroyed Warlord outpost 11468 | -7/Lower Caves | Discovered new exit (range 17) 11488 | -7/Lower Caves | Identified exit to Zion 12061 | -7/Lower Caves | Entered Zion 12245 | -7/Zion | Learned location of Extension (-5) 12256 | -7/Zion | Found Prototype Launcher 12256 | -7/Zion | Identified Gui. Missile Launcher 12341 | -7/Zion | Received a visual enhancement algorithm 12410 | -7/Zion | Learned location of Armory (-3) 12448 | -7/Zion | Given the Hacking Drone Bay 12451 | -7/Zion | Found Prototype Device 12452 | -7/Zion | Identified Hacking Drone Bay 12534 | -7/Zion | Gained Derelict followers 12649 | -7/Zion | Found Relay Coupler [Programmer] 12653 | -7/Zion | Found Relay Coupler [Programmer] 12656 | -7/Zion | Found Relay Coupler [Programmer] 12662 | -7/Zion | Found Relay Coupler [Programmer] 12665 | -7/Zion | Found Relay Coupler [Programmer] 12751 | -7/Zion | Visited the Megawrench Repair Shop 12751 | -7/Zion | Megawrench repaired 2 parts 13234 | -7/Zion | Discovered new exit (range 15) 13252 | -7/Zion | Identified exit to Proximity Caves 13253 | -7/Zion | Entered Proximity Caves 13253 | -6/Proximity Caves | Accompanied by 2 allies 13255 | -6/Proximity Caves | Reached level 16 13397 | -6/Proximity Caves | Reached level 17 13403 | -6/Proximity Caves | Attracted the attention of an 0b10 checkpoint 13584 | -6/Proximity Caves | Discovered exit to Factory (range 17) 13888 | -6/Proximity Caves | Spotted B-75 Beast 13894 | -6/Proximity Caves | Destroyed B-75 Beast 13991 | -6/Proximity Caves | Attracted the attention of an 0b10 outpost 14216 | -6/Proximity Caves | Reached level 18 14347 | -6/Proximity Caves | Received a Behemoth hack from an annoying Tinkerer 14401 | -6/Proximity Caves | Entered Factory 14401 | -6/Factory | Accompanied by 2 allies 14440 | -6/Factory | Identified exit to Factory 14721 | -6/Factory | Upgraded with Power slot (x1) 14821 | -6/Factory | Reached level 19 14940 | -6/Factory | Upgraded with Utility slot (x1) 14983 | -6/Factory | Upgraded with Propulsion slot (x1) 15137 | -6/Factory | Garrison activated, responded to threat 15307 | -6/Factory | Build established: Hacker-Tank 15374 | -6/Factory | Allied Derelicts emerged from ambush trap array 15454 | -6/Factory | Assembled infested ambush trap array 15524 | -6/Factory | Lost 4 allies 15529 | -6/Factory | Identified exit to Lower Caves 16095 | -6/Factory | Entered Lower Caves 16318 | -6/Lower Caves | Attracted the attention of an 0b10 checkpoint 16896 | -6/Lower Caves | Discovered new exit (range 5) 16901 | -6/Lower Caves | Identified exit to Lower Caves 17532 | -6/Lower Caves | Entered another Lower Caves area 17789 | -6/Lower Caves | Discovered new exit (range 10) 17802 | -6/Lower Caves | Identified exit to Data Miner 17854 | -6/Lower Caves | Learned Factory terminal intel 17960 | -6/Lower Caves | Attracted the attention of an 0b10 checkpoint 18005 | -6/Lower Caves | Found DCF Scrap (14 items) 18137 | -6/Lower Caves | Learned Factory stockpile data 18622 | -6/Lower Caves | Attracted the attention of an 0b10 outpost 18627 | -6/Lower Caves | Reached level 20 18795 | -6/Lower Caves | Entered Data Miner 18795 | -6/Data Miner | Accompanied by 1 ally 18795 | -6/Data Miner | Discovered new exit (range 6) 18817 | -6/Data Miner | Met Data Miner 18860 | -6/Data Miner | Learned location of Section 7 (-2) 18860 | -6/Data Miner | Acquired the access code to Warlord's prototype stash 18886 | -6/Data Miner | Received God Mode back door access code from Data Miner 18926 | -6/Data Miner | Identified exit to Proximity Caves 18927 | -6/Data Miner | Entered Proximity Caves 18927 | -5/Proximity Caves | Accompanied by 1 ally 19012 | -5/Proximity Caves | Learned Factory interactive machine intel 19042 | -5/Proximity Caves | Found Alien Artifact 19042 | -5/Proximity Caves | Identified Core Expander 19042 | -5/Proximity Caves | Installed Core Expander, added new Power slot 19295 | -5/Proximity Caves | Reached level 21 19405 | -5/Proximity Caves | Discovered exit to Factory (range 17) 19777 | -5/Proximity Caves | Attracted the attention of an 0b10 checkpoint 19804 | -5/Proximity Caves | Learned Factory stockpile data 19900 | -5/Proximity Caves | Attracted the attention of an 0b10 outpost 20136 | -5/Proximity Caves | Upgraded with Propulsion slot (x1) 20218 | -5/Proximity Caves | Build established: Generator-Tank 20767 | -5/Proximity Caves | Entered Factory 20767 | -5/Factory | Accompanied by 1 ally 20769 | -5/Factory | Loaded intel: 55 interactive machine locations 20769 | -5/Factory | Reached level 22 20770 | -5/Factory | Loaded intel: 27 terminal locations 20997 | -5/Factory | Identified exit to Upper Caves 20997 | -5/Factory | Identified exit to Extension 21004 | -5/Factory | Self-destructed Last Messages --------------- Map updated. 20995_ Hacking Drone attempts to hack Terminal... >>Index(Terminals) Found 19 terminals. Downloaded coordinate data. 20996_ Hacking Drone attempts to hack Terminal... >>Access(Branch) Found 4 branch access points: (113,4) Upper Caves (28,71) Upper Caves (157,90) Extension (112,178) Extension Map updated. 20998_ Hacking Drone attempts to hack Terminal... >>Index(Garrisons) Found 4 garrison accesses. Downloaded coordinate data. 20999_ Hacking Drone attempts to hack Terminal... 20999_ Hacking Drone reports that hacking Terminal no longer safe. 21000_ Hacking Drone retrieved by Hacking Drone Bay (no repairs). Map ----- +----------------------------------------------------+ | ???????????????????????????]?????????????????????? | | ?????????????????????????????????????????????????? | | ?????????????????????????????????????????????????? | | ?????????????????????????????????????????????????? | | ?????????????????????????????????????????????????? | | ?????????????????????????????????????????????????? | | ?????????????????????????????????????????????????? | | ?????????????????????????????????????????????????? | | ?????????????????????????????????????????????????? | | ?????????????????????????????????????????????????? | | ?????????????????????????????????????????????????? | | ?????????????????????????????????????????????????? | | ?????????????????????????????????????????????????? | | ?????????????????????????????????????????????????? | | ???????????????##############???????######???????? | | ???????????????# #???????# ???????? | | ???????????????# """" """" #???????# ???????? | | ???????????????# """" """" #???????# ???????? | | ???????????????# """" """" #???????# ???????? | | ???????????????# """" """" #???????# ???????? | | ???????????????# ######### ???????? | | ???????????????# """" ## #"" ???????? | | ???????????????# """" ##""" #"" ???????? | | ???????????????# """" g ""##""" #""" ???????? | | ???????????????# """" T"##""" #""" ???"T"?? | | ???????????????# @""## #""" ???????? | | ???????????##### ^ ## # ???????? | | ??????######T ######+#+##########+#####+##???????? | | ????R t ???????? | | ????? ???????? | | ????k ???????? | | ????? ???????? | | ????? ########+########???????? | | ??????#+############## ###????# #???#???????? | | ??????????? #????????# #??????# #???#???????? | | ??????????? #?########+#####??# #####??####?? | | ??????????? #?# #??# """ # ??= ? | | ??????????? #?# ! #??# """ # ?? """ | | ??????????? #?# " " " #??# """ # ?? R" | | ??????????? #?# " " " ########### """ """ | | ??????????????# " " " #?????????# """ | | ??????????????# " " " #?????????# """ | | ??????????????# " " " #?????????# | | ??????????????# " " " #?????????# """ """ | | ??????????????# " " " """ #?????????# """ """ | | ??????????????# " " " Y" #?????????# """ """ | | ??????????????# " " " """ #?????????# | | ??????????????# #?????????# = | | ?????##################+######+############+####+# | | ?? | +----------------------------------------------------+ Best States ------------- Heat Dissipation 79 Coolant Potential 65 Energy Generation 62 Energy Capacity 1150 Matter Stores 300 Matter Capacity 300 Sight Range 18 Robot Scan Range 22 Terrain Scan Density 210 Corruption Block 8 Armor Coverage 800 Resistance: KI 20 Resistance: TH 15 Weapon Cycling 15 Evasion (%) 55 Targeting Accuracy 10 Particle Charging 15 Offensive Hacking 15 Defensive Hacking 10 Item Schematics ----------------- Combat Drone Bay | -6/Data Miner | Free Lgt. Regenerative Plating | -6/Data Miner | Free Adv. Cryofiber Web | -6/Data Miner | Free Enh. Armored Leg | -6/Data Miner | Free Ionic Axe | -6/Data Miner | Free Prc. Matter Filter | -6/Data Miner | Free Myomer Leg | -6/Data Miner | Free Quantum Rifle | -6/Data Miner | Free Hvy. Disruptor Cannon | -6/Data Miner | Free Robot Schematics ------------------ R-10 Processor | -6/Data Miner | Free H-66 Slayer | -6/Data Miner | Free Y-64 Sentinel | -6/Data Miner | Free M-22 Extractor | -6/Data Miner | Free Fabricated ------------ Nothing Repaired ---------- Fission Core | 10% | -8/Materials Studied --------- None Alien Tech Used ----------------- Core Expander Achievements -------------- King Drone Challenges ------------ None RPGLIKE | -11 -10 -10 -10 -8 -7 -7 -7 -7 -6 -6 -6 -6 -6 -5 -5 --------- Run | Yrd Mat Min Sub Mat Fac Low Low Zio Pro Fac Low Low Dat Pro Fac Levels Raised 21 | . 2 1 1 5 4 1 . . 3 1 . 1 . 1 1 XP Earned 34927 | 3000 3410 1500 1514 8198 5058 1730 459 244 3425 1992 417 634 152 2460 734 XP Spent 29475 | 2750 2050 2580 800 4625 6520 3050 400 500 . 4200 300 . . 1700 . Upgrades 67 | 7 7 11 1 13 12 8 2 1 . 3 1 . . 1 . Power Slot 2 | . . . . 1 . . . . . 1 . . . . . Propulsion Slot 5 | 1 . . 1 . 1 . . . . 1 . . . 1 . Utility Slot 6 | 1 1 . . 2 1 . . . . 1 . . . . . Weapon Slot 3 | 1 1 . . . 1 . . . . . . . . . . Core Integrity 8 | . . 8 . . . . . . . . . . . . . Heat Dissipation 9 | . 5 . . . 4 . . . . . . . . . . Mass Support 1 | 1 . . . . . . . . . . . . . . . Inventory Capacity 2 | 1 . . . . . . . 1 . . . . . . . Sight Range 2 | . . . . . . . 2 . . . . . . . . Sensor Range 11 | . . . . 10 . . . . . . 1 . . . . Ranged Accuracy 5 | 2 . 3 . . . . . . . . . . . . . Hack Attack % 3 | . . . . . 3 . . . . . . . . . . Hack Defense % 2 | . . . . . 2 . . . . . . . . . . KI Resistance % 4 | . . . . . . 4 . . . . . . . . . TH Resistance % 3 | . . . . . . 3 . . . . . . . . . TH Damage % 1 | . . . . . . 1 . . . . . . . . . Protomatter Created 3213 | . 162 121 57 544 457 150 185 . 391 273 116 225 . 532 . Integrity Restored 6128 | . 427 399 171 1254 1192 440 427 . 574 172 334 265 . 473 . Core 4339 | . 407 399 171 1081 965 332 32 . 325 120 201 52 . 254 . Parts 1789 | . 20 . . 173 227 108 395 . 249 52 133 213 . 219 . Protomatter Decayed 1209 | . 18 33 . 78 55 . 41 . 190 246 . 146 . 402 . Game ------ Seed TimingHelicalExoskeleton Manual? 0 Play Time 02:46:57 Cumulative 199.2 hours Start 2026.04.18 @ 23:56:30 End 2026.04.22 @ 00:32:43 Sessions 3 Manual Loads 0 Difficulty Rogue Special Mode Winter2019/RPGLIKE Game No. 91 Rogue 87 Adventurer 4 Explorer 0 Win Type - Total 7 Types 4/0/2/0/0/0/0/0/1/0 Lore% 73 Gallery% 51 Achievement% 44 Wizard Run 0 Options --------- Layout 0 ASCII 0 Keyboard 0 Movement Arrows Keybinds 0 Fullscreen 2 Font 32/SmallcapsGlow Map View 88x55 Zoom Use 0% Tactical HUD 1 Map Filters NONE Filters NONE Steam 1 RUN: 1da0f1a9-3449-4363-b8fa-cba41bf1acb5